fUST/lending_fUST_20250825
["ID","MTS","AMOUNT","RATE_DAILY","PERIOD"]
[381114053,1756051259585,200.0,0.00030517,30]
[381114054,1756051415603,261.81779673,0.0003,2]
[381114055,1756051469659,160.950763,0.00013699,2]
[381114059,1756051634881,215.0,0.0003,2]
[381114061,1756051649386,500.0,0.00028822,2]
[381114062,1756051777976,200.0,0.00029837,120]
[381114068,1756051832351,-973.0,0.000305,120]
[381114069,1756051832361,-163.04459244,0.00030502,105]
[381114072,1756051832370,-174.93653627,0.000306,2]
[381114080,1756051832443,-125.06346373,0.000306,2]
[381114083,1756051832453,-300.0,0.000306,2]
[381114086,1756051832463,-400.0,0.000306,2]
[381114088,1756051832472,-300.0,0.000306,2]
[381114090,1756051832481,-400.0,0.000306,2]
[381114092,1756051832491,-376.22310801,0.00030601,2]
[381114094,1756051832500,-160.0,0.00030601,2]
[381114096,1756051832510,-232.42214577,0.00030601,2]
[381114097,1756051832519,-160.0,0.00030601,2]
[381114099,1756051832529,-160.0,0.00030601,2]
[381114101,1756051832539,-160.0,0.00030601,2]
[381114103,1756051832552,-844.67759735,0.00030601,2]
[381114106,1756051832562,-217.07852671,0.00030601,2]
[381114108,1756051832571,-12403.49743958,0.00030602,2]
[381114110,1756051832582,-160.950763,0.00031311,2]
[381114112,1756051832592,-500.0,0.00032089,7]
[381114114,1756051832602,-200.0,0.00032356,120]
[381114116,1756051832611,-560.0,0.0003296,2]
[381114118,1756051832622,-200.0,0.00033238,120]
[381114120,1756051832631,-500.0,0.00033431,7]
[381114122,1756051832641,-149.06333049,0.00034356,120]
[381114231,1756051838260,-50.93666951,0.00034356,120]
[381114232,1756051838270,-783.0,0.00035501,2]
[381114233,1756051838279,-178.9548242,0.00035616,2]
[381114234,1756051838289,-168.0,0.00036646,2]
[381114235,1756051838299,-168.0,0.00037006,2]
[381114236,1756051838308,-500.0,0.00038035,7]
[381114237,1756051838318,-168.0,0.00038065,2]
[381114238,1756051838327,-168.0,0.00039359,2]
[381114239,1756051838337,-187.023,0.00039359,54]
[381114240,1756051838346,-168.0,0.00039448,2]
[381114242,1756051838355,-168.0,0.00039573,2]
[381114243,1756051838365,-168.0,0.00040237,2]
[381114244,1756051838375,-500.0,0.00040971,30]
[381114245,1756051838384,-600.0,0.0004182,30]
[381114246,1756051838393,-1000.0,0.00042465,15]
[381114247,1756051838403,-855.84440645,0.00043745,30]
[381114248,1756051838412,-713.23943122,0.00043835,120]
[381114249,1756051838424,-286.76056878,0.00043835,120]
[381114250,1756051838434,-289.23943122,0.00045133,2]
[381114251,1756051838446,-118.76056878,0.00045133,2]
[381114252,1756051838458,-720.0,0.00046002,60]
[381114253,1756051838468,-150.0,0.00046032,2]
[381114254,1756051838478,-974.0,0.00047,30]
[381114255,1756051838488,-161.0,0.00047,90]
[381114256,1756051838498,-199.0,0.00047397,30]
[381114257,1756051838509,-1001.46916508,0.00047548,15]
[381114258,1756051838519,-199.0,0.00048082,32]
[381114259,1756051838530,-408.0,0.00048133,2]
[381114260,1756051838541,-200.0,0.00048213,120]
[381114261,1756051838557,-500.63698753,0.0004858,30]
[381114262,1756051838575,-199.0,0.00048767,34]
[381114263,1756051838584,-200.0,0.00048783,120]
[381114264,1756051838595,-200.0,0.00048832,120]
[381114265,1756051838604,-161.0,0.00048904,90]
[381114266,1756051838613,-160.950763,0.00048924,2]
[381114267,1756051838626,-1000.0,0.00049,120]
[381114268,1756051838636,-4381.15511789,0.00049,120]
[381114269,1756051838648,-618.84488211,0.00049,120]
[381114270,1756051838659,-150.0,0.00049032,2]
[381114271,1756051838670,-500.0,0.0004904,60]
[381114272,1756051838679,-166.13416733,0.00049071,14]
[381114273,1756051838688,-200.0,0.0004919,5]
[381114274,1756051838698,-200.0,0.0004919,4]
[381114275,1756051838707,-500.0,0.00049315,120]
[381114276,1756051838717,-3439.47,0.00049315,120]
[381114277,1756051838727,-3439.47,0.00049315,120]
[381114278,1756051838737,-300.0,0.00049315,120]
[381114279,1756051838746,-963.65475159,0.0004939,28]
[381114280,1756051838761,-297.88,0.0004939,10]
[381114281,1756051838771,-220.20117925,0.00049399,120]
[381114282,1756051838780,-371.9642711,0.00049399,120]
[381114283,1756051838790,-311.23122387,0.00049399,120]
[381114284,1756051838800,-500.0,0.00049399,120]
[381114285,1756051838810,-500.0,0.00049399,120]
[381114286,1756051838819,-500.0,0.00049399,120]
[381114287,1756051838829,-500.0,0.00049399,120]
[381114288,1756051838839,-500.0,0.00049399,120]
[381114289,1756051838849,-500.0,0.00049399,120]
[381114290,1756051838858,-500.0,0.00049399,120]
[381114291,1756051838868,-500.0,0.00049399,120]
[381114292,1756051838878,-184.87707,0.00049399,120]
[381114293,1756051838888,-160.0,0.00049399,120]
[381114294,1756051838897,-156.44,0.00049399,120]
[381114295,1756051838908,-1000000.0,0.000494,120]
[381114296,1756051838918,-199.0,0.00049452,36]
[381114297,1756051838928,-500.0,0.00049488,120]
[381114298,1756051838938,-3439.47,0.00049488,120]
[381114299,1756051838947,-3439.47,0.00049488,120]
[381114300,1756051838957,-3439.47,0.00049488,120]
[381114301,1756051838967,-72290.94217993,0.00049489,120]
[381114302,1756051838976,-600.0,0.0004949,120]
[381114303,1756051838985,-3439.47,0.00049587,120]
[381114304,1756051838996,-1000.0,0.00049588,120]
[381114305,1756051839006,-3439.47,0.00049588,120]
[381114306,1756051839016,-3439.47,0.00049588,120]
[381114307,1756051839025,-3439.47,0.00049588,120]
[381114308,1756051839035,-3439.47,0.00049588,120]
[381114309,1756051839046,-3439.47,0.00049588,120]
[381114310,1756051839055,-3439.47,0.00049588,120]
[381114311,1756051839064,-3439.47,0.00049588,120]
[381114312,1756051839074,-3439.47,0.00049588,120]
[381114313,1756051839083,-3439.47,0.00049588,120]
[381114314,1756051839093,-3439.47,0.00049588,120]
[381114315,1756051839103,-3439.47,0.00049588,120]
[381114316,1756051839112,-3439.47,0.00049588,120]
[381114317,1756051839122,-3439.47,0.00049588,120]
[381114318,1756051839133,-3439.47,0.00049588,120]
[381114319,1756051839143,-3439.47,0.00049588,120]
[381114320,1756051839153,-3439.47,0.00049588,120]
[381114321,1756051839163,-3439.47,0.00049588,120]
[381114322,1756051839172,-3439.6,0.00049588,120]
[381114323,1756051839182,-151.34085828,0.00049588,120]
[381114324,1756051839191,-16000.0,0.00049588,120]
[381114325,1756051839201,-500.0,0.00049588,120]
[381114326,1756051839210,-1888.0,0.00049588,30]
[381114327,1756051839220,-151.0,0.00049588,120]
[381114328,1756051839230,-16592.0,0.00049588,120]
[381114329,1756051839240,-1345.02689301,0.00049588,30]
[381114330,1756051839249,-109.28560606,0.00049588,120]
[381114349,1756051840226,-390.71439394,0.00049588,120]
[381114351,1756051840236,-151.0,0.00049588,120]
[381114353,1756051840246,-591.41220195,0.00049588,120]
[381114426,1756051843569,-481.84999999,0.00049588,120]
[381115072,1756051953084,300.0,0.0003,2]
[381115075,1756052471671,160.950763,0.00013699,2]
[381115078,1756052782247,160.0,0.00013699,2]
[381115079,1756052782597,260.0,0.00014247,2]
[381115080,1756052782944,360.0,0.00014795,2]
[381115081,1756052784543,460.0,0.00015342,2]
[381115083,1756052914265,293.673638,0.00029548,2]
[381115084,1756052915088,21291.38393126,0.000275,2]
[381115085,1756052915116,4232.68530154,0.000275,2]
[381115086,1756052917946,20599.22959898,0.00028498,2]
[381115087,1756052920948,8172.20490516,0.000277,2]
[381115088,1756052924609,452.999999,0.00021,2]
[381115089,1756052928142,205.15020658,0.0002249,2]
[381115090,1756052928177,21.63576446,0.0002249,2]
[381115091,1756052928223,226.78597104,0.00024216,2]
[381115092,1756052928270,396.87544957,0.0002249,2]
[381115093,1756052939019,50000.0,0.00030553,30]
[381115094,1756052943589,50000.0,0.00030553,30]
[381115095,1756052961317,50000.0,0.00030553,30]
[381115143,1756053032553,-168.0,0.00028466,2]
[381115144,1756053032563,-85.29003,0.00028497,2]
[381115145,1756053032574,-214.70997,0.00028497,2]
[381115146,1756053032584,-426.08215053,0.00028497,2]
[381115147,1756053032606,-369.61127081,0.00028497,2]
[381115162,1756053038230,-150.51,0.00027913,15]
[381115163,1756053038239,-150.51,0.00028013,15]
[381115164,1756053038248,-150.51,0.00028213,15]
[381115165,1756053038257,-150.51,0.00028313,15]
[381115166,1756053038268,-150.51,0.00028413,15]
[381115167,1756053038278,-404.30657866,0.00028497,2]
[381115168,1756053038287,-42047.09919645,0.00028498,2]
[381115169,1756053038297,-150.51,0.00028613,15]
[381115170,1756053038307,-168.0,0.0002881,2]
[381115172,1756053038316,-150.51,0.00028813,15]
[381115173,1756053038326,-150.51,0.00029013,15]
[381115174,1756053038335,-168.0,0.00029049,2]
[381115175,1756053038345,-150.51,0.00029113,15]
[381115176,1756053038355,-150.51,0.00029213,15]
[381115177,1756053038364,-150.51,0.00029313,15]
[381115178,1756053038373,-150.51,0.00029413,15]
[381115179,1756053038382,-150.51,0.00029513,15]
[381115180,1756053038392,-150.51,0.00029613,15]
[381115181,1756053038401,-150.51,0.00029913,15]
[381115182,1756053038410,-1044.46822613,0.000304,2]
[381115183,1756053038419,-2874.80927335,0.000305,2]
[381115184,1756053038430,-168.0,0.00030509,2]
[381115185,1756053038439,-160.0,0.00030541,2]
[381115186,1756053038448,-1200.0,0.00030541,2]
[381115187,1756053038458,-297.88,0.00030543,10]
[381115188,1756053038468,-3495.0,0.0003055,2]
[381115189,1756053038478,-415.5219691,0.00030552,2]
[381115190,1756053038487,-160.16243712,0.00030552,2]
[381115191,1756053038496,-500.0,0.00030552,2]
[381115192,1756053038506,-528.61458115,0.00030552,2]
[381115193,1756053038515,-500.0,0.00030552,2]
[381115194,1756053038526,-500.0,0.00030552,2]
[381115195,1756053038535,-259.1716942,0.00030552,2]
[381115196,1756053038544,-500.0,0.00030552,2]
[381115197,1756053038553,-500.0,0.00030552,2]
[381115198,1756053038563,-500.0,0.00030552,2]
[381115199,1756053038573,-184.87707,0.00030552,2]
[381115200,1756053038582,-500.0,0.00030552,2]
[381115201,1756053038592,-500.0,0.00030552,2]
[381115202,1756053038601,-500.0,0.00030552,2]
[381115203,1756053038611,-500.0,0.00030552,2]
[381115204,1756053038620,-151.0,0.00030552,2]
[381115205,1756053038630,-3669.12700037,0.00030553,2]
[381115206,1756053038640,-190037.58717899,0.00030553,20]
[381115207,1756053038652,-1351338.16425381,0.00030553,20]
[381115208,1756053038664,-99542.1675808,0.00030553,20]
[381115232,1756053043415,-150.51,0.00027813,15]
[381115233,1756053043425,-150.51,0.00028113,15]
[381115234,1756053043434,-150.51,0.00028513,15]
[381115235,1756053043443,-203.01623307,0.0002871,2]
[381115236,1756053043453,-150.51,0.00028713,15]
[381115237,1756053043463,-150.51,0.00028913,15]
[381115239,1756053043473,-150.51,0.00029713,15]
[381115240,1756053043483,-150.51,0.00029813,15]
[381115242,1756053043500,-150.51,0.00030013,15]
[381115243,1756053043510,-150.51,0.00030213,15]
[381115244,1756053043520,-150274.23673964,0.00030553,20]
[381115246,1756053043776,-638.46359982,0.00030553,20]
[381115247,1756053043787,-300.0,0.00030553,20]
[381115252,1756053046342,-150.51,0.00030113,15]
[381115253,1756053046352,-150.51,0.00030313,15]
[381115254,1756053046362,-111.2,0.00030413,15]
[381115266,1756053094445,396.0,0.00020763,2]
[381115267,1756053094483,346.5,0.0002249,2]
[381115274,1756053217664,380.69948482,0.00025205,30]
[381115281,1756053254736,5000.0,0.00027,2]
[381115283,1756053263266,5000.0,0.00027,2]
[381115284,1756053270997,5000.0,0.00027,2]
[381115285,1756053278961,1653.12670083,0.00027,2]
[381115286,1756053287754,5000.0,0.00027,2]
[381115287,1756053303155,5000.0,0.00027,2]
[381115288,1756053319335,5000.0,0.00027,2]
[381115289,1756053334461,5000.0,0.00027,2]
[381115291,1756053364407,5000.0,0.00027,2]
[381115292,1756053367025,860.2,0.00030466,30]
[381115294,1756053380856,5000.0,0.00027,2]
[381115295,1756053382101,259.609439,0.00025778,2]
[381115296,1756053382369,259.609439,0.00026044,2]
[381115297,1756053396724,5000.0,0.00027,2]
[381115298,1756053412350,5000.0,0.00027,2]
[381115299,1756053428295,5000.0,0.00027,2]
[381115300,1756053444258,5000.0,0.00027,2]
[381115301,1756053448776,160.950763,0.00013699,2]
[381115302,1756053459558,5000.0,0.00027,2]
[381115303,1756053475019,5000.0,0.00027,2]
[381115304,1756053490374,5000.0,0.00027,2]
[381115305,1756053505850,5000.0,0.00027,2]
[381115306,1756053521953,5000.0,0.00027,2]
[381115307,1756053537582,5000.0,0.00027,2]
[381115308,1756053545774,361.56773111,0.00027,2]
[381115310,1756053553924,5000.0,0.00027,2]
[381115311,1756053569840,5000.0,0.00027,2]
[381115312,1756053585743,460.53791307,0.00027,2]
[381115313,1756053937870,200.0,0.00030475,30]
[381115314,1756053949518,200.0,0.00030475,30]
[381115315,1756053956971,200.0,0.00030475,30]
[381115316,1756053964580,200.0,0.00030475,30]
[381115317,1756054029743,243.48,0.00030475,30]
[381115319,1756054158572,303.32952221,0.00027,2]
[381115341,1756054232624,-155.95094814,0.00027726,15]
[381115343,1756054232634,-166.15,0.00027726,15]
[381115345,1756054232643,-996.36017979,0.00028397,2]
[381115347,1756054232652,-600.0,0.00028856,2]
[381115351,1756054232664,-200.0,0.00029511,120]
[381115354,1756054232674,-400.0,0.00030373,2]
[381115357,1756054232682,-364.0,0.00030373,2]
[381115359,1756054232692,-1600.0,0.00030373,2]
[381115362,1756054232701,-913.90969789,0.00030374,2]
[381115366,1756054232712,-5148.00432372,0.0003038,2]
[381115369,1756054232721,-1200.0,0.00030399,2]
[381115373,1756054232732,-39.31,0.00030413,15]
[381115376,1756054232742,-2522.02,0.00030464,3]
[381115379,1756054232751,-1261.01,0.00030464,3]
[381115381,1756054232761,-630.5,0.00030465,3]
[381115383,1756054232770,-315.25,0.00030465,3]
[381115384,1756054232780,-157.63,0.00030465,3]
[381115386,1756054232789,-472.91,0.00030465,3]
[381115388,1756054232799,-248.24,0.00030465,10]
[381115389,1756054232808,-206.86,0.00030465,10]
[381115391,1756054232818,-172.39,0.00030465,10]
[381115393,1756054232828,-275.06555528,0.00030473,5]
[381115395,1756054232837,-200.0,0.00030473,5]
[381115397,1756054232846,-500.0,0.00030473,5]
[381115399,1756054232855,-500.0,0.00030473,5]
[381115401,1756054232865,-502.53442711,0.00030473,5]
[381115403,1756054232873,-500.0,0.00030473,5]
[381115405,1756054232883,-500.0,0.00030473,5]
[381115407,1756054232897,-501.874881,0.00030473,5]
[381115409,1756054232906,-501.63974032,0.00030473,5]
[381115410,1756054232915,-502.83845701,0.00030473,5]
[381115411,1756054232926,-187.024,0.00030473,26]
[381115412,1756054232935,-500.0,0.00030473,2]
[381115413,1756054232944,-500.0,0.00030473,2]
[381115414,1756054232954,-373.36982977,0.00030473,2]
[381115415,1756054232963,-420.59286297,0.00030473,2]
[381115416,1756054232972,-353.87523,0.00030473,2]
[381115417,1756054232981,-587.34953461,0.00030473,2]
[381115418,1756054232990,-410.75650659,0.00030473,2]
[381115419,1756054232999,-500.0,0.00030473,2]
[381115420,1756054233009,-295.61245942,0.00030473,2]
[381115422,1756054233019,-500.0,0.00030473,2]
[381115424,1756054233029,-500.0,0.00030473,2]
[381115426,1756054233039,-616.25311484,0.00030473,2]
[381115428,1756054233049,-500.0,0.00030473,2]
[381115430,1756054233059,-500.0,0.00030473,2]
[381115432,1756054233069,-2347.54225064,0.00030474,2]
[381115434,1756054233078,-290.86537837,0.00030474,2]
[381115435,1756054233088,-2347.54225064,0.00030474,2]
[381115436,1756054233098,-2347.54225064,0.00030474,2]
[381115437,1756054233109,-2347.54225064,0.00030474,2]
[381115438,1756054233120,-2347.54225064,0.00030474,2]
[381115439,1756054233130,-2347.54225064,0.00030474,2]
[381115440,1756054233140,-2347.54225064,0.00030474,2]
[381115441,1756054233151,-2347.54225064,0.00030474,2]
[381115442,1756054233161,-2347.54225064,0.00030474,2]
[381115443,1756054233171,-2347.54225064,0.00030474,2]
[381115445,1756054233181,-2347.54225064,0.00030474,2]
[381115446,1756054233190,-2347.54225064,0.00030474,2]
[381115448,1756054233200,-2347.54225064,0.00030474,2]
[381115449,1756054233210,-2347.54225064,0.00030474,2]
[381115450,1756054233220,-2347.54225064,0.00030474,2]
[381115451,1756054233230,-2347.54225064,0.00030474,2]
[381115452,1756054233240,-2347.54225064,0.00030474,2]
[381115454,1756054233251,-2464.91936317,0.00030474,2]
[381115456,1756054233261,-2464.91936317,0.00030474,2]
[381115458,1756054233271,-2464.91936317,0.00030474,2]
[381115460,1756054233280,-2464.91936317,0.00030474,2]
[381115462,1756054233290,-2464.91936317,0.00030474,2]
[381115463,1756054233299,-797.90327837,0.00030474,2]
[381115464,1756054233328,-1667.0160848,0.00030474,2]
[381115465,1756054233338,-2464.91936317,0.00030474,2]
[381115466,1756054233348,-2464.91936317,0.00030474,2]
[381115467,1756054233358,-3355.83430622,0.00030475,20]
[381115476,1756054238496,-861.95,0.00030465,10]
[381115477,1756054238506,-9133.06400751,0.00030475,20]
[381115478,1756054238517,-29634.01541799,0.00030475,20]
[381115479,1756054238529,-1219790.20658335,0.00030475,20]
[381115480,1756054238539,-1762.86645709,0.0003048,2]
[381115481,1756054238548,-19478.4078249,0.0003049,2]
[381115482,1756054238557,-9017.64,0.000305,7]
[381115483,1756054238567,-3737.81,0.000305,7]
[381115484,1756054238578,-500.0,0.000305,5]
[381115485,1756054238590,-160.0,0.000305,7]
[381115486,1756054238599,-160.0,0.000305,7]
[381115487,1756054238608,-232.42214577,0.000305,7]
[381115488,1756054238797,-150.51,0.00030513,15]
[381115489,1756054238820,-160.0,0.0003052,2]
[381115490,1756054238831,-160.0,0.0003055,2]
[381115491,1756054238841,-160.0,0.0003055,2]
[381115492,1756054238850,-160.0,0.0003055,2]
[381115493,1756054238859,-160.0,0.0003055,2]
[381115494,1756054238869,-200.0,0.00030552,10]
[381115495,1756054238878,-12698.53451425,0.00030594,2]
[381115496,1756054238887,-160.0,0.00030597,2]
[381115497,1756054238897,-215.99145658,0.00030597,2]
[381115498,1756054238906,-5205.84,0.000306,2]
[381115499,1756054238915,-159.05,0.000306,7]
[381115500,1756054238925,-150.51,0.00030613,15]
[381115501,1756054238934,-150.51,0.00030713,15]
[381115502,1756054238943,-150.51,0.00030813,15]
[381115503,1756054238953,-168.0,0.00030901,2]
[381115504,1756054238962,-150.51,0.00030913,15]
[381115505,1756054238971,-4231.21882157,0.0003099,2]
[381115506,1756054238981,-155.0,0.00031,120]
[381115507,1756054238990,-1762.86645709,0.00031011,2]
[381115508,1756054238999,-150.51,0.00031013,15]
[381115509,1756054239008,-1000.0,0.00031021,5]
[381115510,1756054239017,-1000.0,0.00031021,5]
[381115511,1756054239027,-897.95830618,0.00031021,5]
[381115512,1756054239036,-150.51,0.00031113,15]
[381115513,1756054239045,-400.0,0.00031158,5]
[381115514,1756054239054,-150.51,0.00031213,15]
[381115515,1756054239063,-150.51,0.00031313,15]
[381115516,1756054239072,-150.51,0.00031413,15]
[381115517,1756054239083,-250.64421187,0.00031433,2]
[381115518,1756054239092,-150.51,0.00031513,15]
[381115519,1756054239101,-1500.0,0.00031568,5]
[381115520,1756054239111,-1500.0,0.00031568,5]
[381115521,1756054239121,-150.51,0.00031613,15]
[381115522,1756054239131,-150.51,0.00031713,15]
[381115523,1756054239140,-150.51,0.00031813,15]
[381115524,1756054239149,-5044.04,0.00031834,3]
[381115525,1756054239159,-2522.02,0.00031834,3]
[381115526,1756054239168,-160.0,0.00031834,3]
[381115527,1756054239178,-160.0,0.00031834,3]
[381115528,1756054239187,-232.42214577,0.00031834,3]
[381115529,1756054239197,-1261.0,0.00031835,3]
[381115530,1756054239206,-630.5,0.00031835,3]
[381115531,1756054239215,-315.26,0.00031835,3]
[381115532,1756054239224,-150.51,0.00031913,15]
[381115533,1756054239234,-150.51,0.00032013,15]
[381115534,1756054239244,-160.0,0.00032036,2]
[381115535,1756054239253,-19478.4078249,0.00032106,2]
[381115536,1756054239262,-150.66516545,0.00032113,15]
[381115537,1756054239271,-2000.0,0.00032116,5]
[381115538,1756054239281,-2000.0,0.00032116,5]
[381115539,1756054239290,-1762.86645709,0.0003219,2]
[381115540,1756054239299,-9017.64,0.000322,7]
[381115541,1756054239310,-3737.81,0.000322,7]
[381115542,1756054239319,-200.0,0.0003227,120]
[381115543,1756054239329,-500.0,0.00032336,7]
[381115544,1756054239339,-260.0,0.00032584,2]
[381115545,1756054239349,-200.0,0.00032591,120]
[381115546,1756054239358,-560.0,0.00032723,2]
[381115547,1756054239368,-500.0,0.00032876,120]
[381115548,1756054239377,-360.0,0.00033132,2]
[381115549,1756054239387,-913.90969783,0.000333,2]
[381115550,1756054239396,-155.0,0.000336,120]
[381115551,1756054239405,-200.0,0.0003368,2]
[381115552,1756054239414,-200.0,0.00033711,120]
[381115553,1756054239424,-200.0,0.00033879,120]
[381115554,1756054239433,-500.0,0.00034246,120]
[381115555,1756054239442,-200.0,0.00035253,120]
[381115556,1756054239452,-716.0,0.00035254,2]
[381115557,1756054239461,-500.0,0.00035616,120]
[381115558,1756054239470,-200.0,0.00035682,120]
[381115559,1756054239479,-155.0,0.000362,120]
[381115560,1756054239488,-913.90969783,0.00036227,2]
[381115561,1756054239498,-200.0,0.00036957,120]
[381115562,1756054239507,-500.0,0.00036986,120]
[381115563,1756054239517,-5205.84,0.00037,14]
[381115564,1756054239526,-159.05,0.000374,7]
[381115565,1756054239535,-200.0,0.00037582,120]
[381115566,1756054239544,-377.0,0.00037588,7]
[381115567,1756054239553,-3379.33452059,0.000376,14]
[381115568,1756054239932,-5638.30547941,0.000376,14]
[381115569,1756054239942,-3737.81,0.000376,7]
[381115570,1756054239951,-2371.93655102,0.0003801,5]
[381115571,1756054239960,-500.0,0.00038356,120]
[381115572,1756054239973,-200.0,0.00038575,120]
[381115573,1756054239982,-200.0,0.00038609,120]
[381115574,1756054239991,-155.0,0.000388,120]
[381115575,1756054240001,-913.90969783,0.00039153,2]
[381115576,1756054240010,-200.0,0.00039406,120]
[381115577,1756054240019,-1762.86645709,0.00039697,3]
[381115578,1756054240028,-19478.4078249,0.00039706,3]
[381115579,1756054240037,-8064.94486638,0.00039716,10]
[381115580,1756054240046,-500.0,0.00039726,120]
[381115581,1756054240055,-200.0,0.00039847,120]
[381115582,1756054240064,-277.0,0.000405,17]
[381115584,1756054240073,-647.66914228,0.00040881,8]
[381115585,1756054240083,-200.0,0.00040929,120]
[381115586,1756054240093,-500.0,0.00041095,120]
[381115587,1756054240103,-500.0,0.00041096,31]
[381115588,1756054240115,-311.23122387,0.00041096,31]
[381115589,1756054240124,-155.0,0.000415,120]
[381115590,1756054240134,-913.90969783,0.00042079,28]
[381115591,1756054240143,-500.0,0.00042465,120]
[381115592,1756054240152,-500.0,0.00042475,30]
[381115593,1756054240161,-5205.84,0.000425,14]
[381115594,1756054240171,-200.0,0.00042504,120]
[381115595,1756054240180,-200.0,0.00042689,120]
[381115596,1756054240190,-154.934334,0.00043348,20]
[381115597,1756054240200,-500.0,0.00043835,120]
[381115598,1756054240209,-155.0,0.000441,120]
[381115599,1756054240218,-500.0,0.00044454,30]
[381115600,1756054240227,-200.0,0.00044883,120]
[381115601,1756054240236,-973.0,0.00044886,2]
[381115602,1756054240246,-2155.0,0.00044886,2]
[381115603,1756054240255,-637.0,0.00044886,2]
[381115604,1756054240264,-289.974,0.00044886,2]
[381115606,1756054240274,-408.0,0.00044886,2]
[381115607,1756054240283,-9017.64,0.000449,14]
[381115609,1756054240293,-3737.81,0.000449,7]
[381115610,1756054240302,-160.0,0.000449,3]
[381115611,1756054240311,-913.90969783,0.00045005,28]
[381115612,1756054240320,-500.0,0.00045205,120]
[381115614,1756054240331,-1762.86645709,0.0004528,3]
[381115615,1756054240340,-19478.4078249,0.0004529,3]
[381115617,1756054240350,-3964.79432637,0.000453,120]
[381115619,1756054240362,-3630.04,0.000453,120]
[381115620,1756054240388,-2934.98395888,0.000453,120]
[381115621,1756054240400,-2168.716229,0.000453,120]
[381115622,1756054240409,-200.0,0.00045462,120]
[381115623,1756054240418,-200.0,0.00045614,120]
[381115624,1756054240427,-150.482208,0.00045784,2]
[381115625,1756054240436,-160.0,0.00046,120]
[381115626,1756054240446,-500.0,0.00046575,120]
[381115627,1756054240455,-300.0,0.00046575,120]
[381115628,1756054240464,-801.21,0.000466,4]
[381115629,1756054240473,-200.0,0.00046609,120]
[381115630,1756054240483,-155.0,0.000467,120]
[381115631,1756054240492,-217.07852671,0.00046781,2]
[381115632,1756054240501,-199.0,0.00047397,30]
[381115633,1756054240511,-154.934334,0.00047743,20]
[381115634,1756054240520,-154.934334,0.00047743,20]
[381115635,1756054240530,-150.0,0.00047886,2]
[381115637,1756054240539,-408.0,0.00047886,2]
[381115638,1756054240548,-913.90969783,0.00047932,28]
[381115640,1756054240558,-500.0,0.00047945,120]
[381115641,1756054240567,-164.0,0.00048,90]
[381115642,1756054240576,-199.0,0.00048082,32]
[381115644,1756054240589,-150.482208,0.00048616,2]
[381115645,1756054240598,-199.0,0.00048767,34]
[381115646,1756054240607,-155.0,0.000488,120]
[381115647,1756054240617,-154.934334,0.00048812,2]
[381115648,1756054240626,-154.934334,0.0004885,15]
[381115649,1756054240635,-392.25,0.00048921,14]
[381115650,1756054240644,-167.11243922,0.00049,120]
[381115651,1756054240653,-2363.45,0.00049,120]
[381115652,1756054240667,-499.0,0.0004904,60]
[381115653,1756054240676,-500.0,0.0004904,60]
[381115654,1756054240686,-5288.59937127,0.0004908,4]